Cogmind - Beta 16 *** ADVENTURER MODE // 2025.12.22 @ 10:53:47 Player: Loyso Result: Destroyed by P-80 Master with Gamma Rifle Performance ------------- Evolutions (9) 4500 Regions Visited (12) 2400 Robots Destroyed (45) 225 Value Destroyed (2021) 2021 Prototype IDs (10) 200 Alien Tech Used (0) 0 Bonus (2379) 2379 TOTAL SCORE: 11725 Bonus ------- Follower Combat Kills 579 Entered DSFs 1000 Registered with UFD 300 Met Optimus in HQ 500 Cogmind --------- Core Integrity 0/1600 Matter 194/300 Energy 100/100 System Corruption 13% Temperature Cool (0) Movement Core (50) Location -1/Access Parts ------- > --- POWER (3) -------- (None) > --- PROPULSION (8) --- Centrium Leg > --- UTILITY (9) ------ (None) > --- WEAPON (5) ------- (None) > --- INVENTORY (5) ---- Enhanced Nova Cannon Peak State ------------ > --- POWER ------------ Micro Fission Core Light Antimatter Reactor > --- PROPULSION ------- Improved VSS Leg Improved VSS Leg Improved VSS Leg Improved VSS Leg Potential Leg > --- UTILITY ---------- Makeshift Light Armor Plating Layered Medium Armor Plating Layered Medium Armor Plating Layered Medium Armor Plating Hacking Suite Hacking Suite > --- WEAPON ----------- KE Penetrator KE Penetrator KE Penetrator KE Penetrator Enhanced Gauss Cannon > --- INVENTORY -------- Improved Linear Gravjet Layered Medium Armor Plating [Rating: 99] Favorites ----------- Power Light Nuclear Core Engine Deuterium Engine Power Core Light Nuclear Core Reactor Light Antimatter Reactor Propulsion Flexi-carbon Leg Treads Heavy Siege Treads Leg Flexi-carbon Leg Wheel Wheel Hover Unit Combat Gravmag System Flight Unit Impulse Thruster Array Utility Layered Medium Armor Plating Device Improved Terrain Scanner Storage Vampiric Humpback Processor Improved Melee Analysis Suite Hackware Hacking Suite Protection Layered Medium Armor Plating Weapon KE Penetrator Energy Gun Subdweller Laser Energy Cannon Phase Cannon Ballistic Gun KE Penetrator Ballistic Cannon Enhanced Gauss Cannon Slashing Weapon Phasing Sabre Build | -11 -10 -10 -7 -5 -5 -4 -4 -4 -3 -3 -2 -1 ------- Run | Yrd Mat Sub Scr Fac DSF Fac Upp Upp Res DSF Res Acc Slots Evolved 18 | . . . . 10 . 2 . . 2 . 2 2 Power 2 | . . . . 1 . . . . 1 . . . Propulsion 6 | . . . . 4 . . . . . . 2 . Utility 7 | . . . . 4 . . . . 1 . . 2 Weapon 3 | . . . . 1 . 2 . . . . . . Parts Attached 95 | 7 . 5 24 3 16 8 14 2 3 2 3 8 Power 12 | 1 . 1 4 . 3 2 1 . . . . . Engine 5 | 1 . 1 3 . . . . . . . . . Core 5 | . . . . . 3 1 1 . . . . . Reactor 2 | . . . 1 . . 1 . . . . . . Propulsion 31 | 4 . 1 8 1 3 1 3 . . 2 3 5 Treads 1 | . . . . . . 1 . . . . . . Leg 21 | 2 . . 8 1 3 . 3 . . . . 4 Wheel 3 | 2 . 1 . . . . . . . . . . Hover 4 | . . . . . . . . . . 1 3 . Flight 2 | . . . . . . . . . . 1 . 1 Utility 27 | . . 1 7 2 5 3 4 2 2 . . 1 Device 7 | . . . 3 . 1 . 2 . 1 . . . Storage 1 | . . . 1 . . . . . . . . . Processor 3 | . . . . . . . 1 1 1 . . . Hackware 3 | . . . . 1 . 2 . . . . . . Protection 13 | . . 1 3 1 4 1 1 1 . . . 1 Artifact . | . . . . . . . . . . . . . Weapon 25 | 2 . 2 5 . 5 2 6 . 1 . . 2 Energy Gun 4 | 1 . 1 1 . . . 1 . . . . . Energy Cannon 2 | . . . . . . . 1 . . . . 1 Ballistic Gun 10 | 1 . 1 4 . 2 2 . . . . . . Ballistic Cannon 7 | . . . . . 3 . 2 . 1 . . 1 Launcher . | . . . . . . . . . . . . . Special Weapon . | . . . . . . . . . . . . . Impact Weapon . | . . . . . . . . . . . . . Slashing Weapon 2 | . . . . . . . 2 . . . . . Piercing Weapon . | . . . . . . . . . . . . . Special Melee Weapon . | . . . . . . . . . . . . . Unidentified Prototypes 8 | . . . 5 . . . . . 2 . . 1 Parts Lost 45 | . . . 7 . 4 1 13 2 . 10 . 8 Power 6 | . . . 2 . 1 . 2 . . 1 . . Propulsion 15 | . . . 2 . 1 1 1 . . 3 . 7 Utility 15 | . . . 1 . 2 . 6 1 . 4 . 1 Weapon 9 | . . . 2 . . . 4 1 . 2 . . Highest Loss Streak 9 | . . . 4 . 2 1 9 2 . 9 . 3 To Critical Strikes 2 | . . . . . . . 1 . . 1 . . Average Backups 2 | 3 4 3 3 2 2 4 2 . . 2 3 2 Power . | . . . . . . . . . . . . . Propulsion 1 | 3 4 2 . . . . . . . 2 3 1 Utility . | . . . 1 1 . 1 1 . . . . . Weapon . | . . . . . . . 1 . . . . . Tool/Special . | . . . . . . . . . . . . . Unused Backups 15 | . . 2 6 . 2 2 . . . 1 1 1 Power 2 | . . . 2 . . . . . . . . . Propulsion 5 | . . 2 1 . . 1 . . . 1 . . Utility 3 | . . . 1 . 1 . . . . . . 1 Weapon 4 | . . . 1 . 1 1 . . . . 1 . Tool/Special 1 | . . . 1 . . . . . . . . . Average Slot Usage (%) 64 | . 71 79 88 32 75 72 29 74 58 51 3 14 Engine 5 | . 14 14 11 5 . . . . . . . . Core 2 | . . . . . 7 5 2 5 4 3 . . Reactor 1 | . . . 2 . . 4 1 . . . . . Leg 10 | . 28 10 11 14 23 13 3 15 14 9 . 4 Wheel 6 | . . 17 15 . . . . . . . . . Device 2 | . . . 2 . . . 1 10 7 8 . . Processor 1 | . . . . . . . . 8 9 8 . . Hackware 1 | . . . . . 2 9 2 . . . . . Protection 10 | . . 8 16 11 24 16 5 8 4 3 . . Energy Gun 5 | . 14 14 9 . . . . 5 4 3 . . Ballistic Gun 9 | . 14 14 18 . 1 16 3 . . . . . Ballistic Cannon 2 | . . . . . 12 4 1 10 3 3 . 1 Peak Build Rating 99 | 5 5 13 54 39 91 99 71 70 66 82 19 70 Average Rating 35 | 4 5 9 24 31 72 78 32 67 58 51 14 32 On Entrance 33 | . 5 5 12 27 39 79 71 62 49 60 3 19 Avg Prop Armor Cover (%) 22 | . . . 4 . 10 1 . . . . . 31 Naked Turns 348 | . . . . . . . 293 . . 7 16 32 Heaviest Build 77 | 7 7 31 35 17 74 77 68 55 36 36 . 13 Greatest Support 90 | 20 20 30 49 60 90 90 70 60 60 60 16 30 Greatest Overweight (x) 3 | . . 1 3 . 2 2 2 . . . . 1 Average Overweight (x) . | . . . . . . . . . . . . . Largest Inventory Capacity 35 | 5 5 5 35 5 5 5 5 5 5 5 5 5 Average Capacity 5 | 5 5 5 5 5 5 5 5 5 5 5 5 5 Most Carried 5 | 5 4 5 5 3 5 5 5 2 3 5 5 5 Average Carried 3 | 3 4 3 4 1 2 4 2 . 1 4 4 1 Final Capacity 5 | 5 5 5 5 5 5 5 5 5 5 5 5 5 Final Carried 5 | 4 4 2 3 . 4 4 . . 2 5 5 1 Class Distribution -------------------- 30% | Mutant 22% | Subdweller-Mutant 13% | Hacker-Tank 12% | Scavenger-Mutant 9% | Derelict-Tank 5% | Scavenger-Tank 4% | Scavenger-Skirmisher Dominant Class ---------------- Mutant | -10/Materials Mutant | -10/Subcaves Subdweller-Mutant | -7/Scraptown Subdweller-Mutant | -5/Factory Scavenger-Tank | -5/DSF Hacker-Tank | -4/Factory Mutant | -4/Upper Caves Derelict-Tank | -4/Upper Caves Scavenger-Skirmisher | -3/Research Scavenger-Skirmisher | -3/DSF Mutant | -2/Research Mutant | -1/Access Resources | -11 -10 -10 -7 -5 -5 -4 -4 -4 -3 -3 -2 -1 ----------- Run | Yrd Mat Sub Scr Fac DSF Fac Upp Upp Res DSF Res Acc Matter Collected 2146 | 282 . 92 637 . 408 176 411 63 30 47 . . Remotely . | . . . . . . . . . . . . . Salvage Created 2321 | 48 . 73 1269 . 368 217 97 27 . 222 . . Parts 99 | 2 . 7 50 . 13 16 7 3 . 1 . . Haulers Intercepted 1 | . . . . . 1 . . . . . . . Recyclers Shooed 2 | . . . . . . 2 . . . . . . Parts Field Recycled . | . . . . . . . . . . . . . Retrieved Matter . | . . . . . . . . . . . . . Parts Self-Destructed 17 | . . . 4 . . . 13 . . . . . Prevented . | . . . . . . . . . . . . . Parts Restored . | . . . . . . . . . . . . . Kills | -11 -10 -10 -7 -5 -5 -4 -4 -4 -3 -3 -2 -1 ------- Run | Yrd Mat Sub Scr Fac DSF Fac Upp Upp Res DSF Res Acc Combat Hostiles Destroyed 44 | 1 . 2 20 . 6 7 6 . . 2 . . Guns 32 | 1 . 2 20 . . 7 1 . . 1 . . Cannons 12 | . . . . . 6 . 5 . . 1 . . Classes Destroyed 12 | 1 . 1 4 . 3 2 . 1 . . . . Hauler 1 | . . . . . 1 . . . . . . . Swarmer 12 | . . . . . . 6 6 . . . . . Grunt 3 | 1 . . . . 2 . . . . . . . Duelist 1 | . . . . . 1 . . . . . . . Sentry 1 | . . . . . . 1 . . . . . . Specialist 5 | . . . . . 3 . . . . 2 . . Subdweller 2 | . . 2 . . . . . . . . . . Federalist 2 | . . . 2 . . . . . . . . . Ranger 1 | . . . 1 . . . . . . . . . Guru 2 | . . . 2 . . . . . . . . . Scrapper 15 | . . . 15 . . . . . . . . . Decomposer 1 | . . . . . . . . 1 . . . . Best Kill Streak 8 | 1 . 2 8 . 3 5 4 . . 1 . . Combat Bots Only 8 | 1 . 2 8 . 3 5 4 . . 1 . . Max Kills in Single Turn 2 | 1 . 1 2 . 2 2 1 1 . 1 . . Gunslinging 1 | . . . 1 . . . . . . . . . Exploded . | . . . . . . . . . . . . . Melee . | . . . . . . . . . . . . . Uniques/NPCs Destroyed . | . . . . . . . . . . . . . Combat | -11 -10 -10 -7 -5 -5 -4 -4 -4 -3 -3 -2 -1 -------- Run | Yrd Mat Sub Scr Fac DSF Fac Upp Upp Res DSF Res Acc Hostile Shots Fired 1336 | 6 . 16 98 . 93 99 269 40 . 287 20 408 Missed 511 | 1 . 3 22 . 29 25 83 16 . 149 12 171 Hits 825 | 5 . 13 76 . 64 74 186 24 . 138 8 237 Melee 13 | . . . . . 3 . 10 . . . . . Projectile 812 | 5 . 13 76 . 61 74 176 24 . 138 8 237 Critical Strikes 33 | . . . 7 . 2 . 12 3 . 2 . 7 Part Disruptions 7 | . . . 1 . 5 . 1 . . . . . Damage Taken 12385 | 41 . 211 1164 . 1155 1276 2879 307 . 1063 159 4130 Core 3478 | 9 . . 157 . 109 411 620 24 . 455 77 1616 Absorbed by Shields 107 | . . . . . . . 39 68 . . . . Ignored by Resistances 3448 | 14 . 62 317 . 315 268 843 111 . 345 41 1132 Core Remaining (%) 64 | 96 . . 33 . 89 . . 8 . 65 94 . Volleys Fired 111 | 5 . 11 45 . 15 14 13 . . 8 . . Largest 5 | 2 . 2 2 . 3 5 3 . . 3 . . Hottest 214 | 70 . 80 90 . 141 179 132 . . 214 . . Shots Fired 244 | 10 . 22 90 . 35 47 19 1 . 20 . . Gun 181 | 10 . 22 90 . 2 44 6 . . 7 . . Cannon 63 | . . . . . 33 3 13 1 . 13 . . Launcher . | . . . . . . . . . . . . . Special . | . . . . . . . . . . . . . Kinetic 211 | 5 . 11 88 . 35 47 17 . . 8 . . Thermal 33 | 5 . 11 2 . . . 2 1 . 12 . . Explosive . | . . . . . . . . . . . . . Electromagnetic . | . . . . . . . . . . . . . Robot Hit Streak 29 | 4 . 21 29 . 14 7 6 3 . 21 . . Robot Miss Streak 4 | 1 . . 1 . 2 2 4 . . . . . Penetration Max 1 | . . . 1 . 1 1 . . . . . . Secondary Targets 6 | . . . 5 . . . 1 . . . . . Max Gunslinging Chain 1 | . . . 1 . . . 1 . . . . . Shots Hit Robots 165 | 6 . 17 66 . 28 18 11 1 . 18 . . Core Hits 69 | 2 . 3 27 . 13 11 7 . . 5 . 1 Critical Kills 2 | . . . . . . 2 . . . . . . Critical Parts Destroyed 4 | . . . 4 . . . . . . . . . Critical Strikes 17 | 1 . 2 4 . 6 2 . . . 2 . . Burn 4 | 1 . 2 . . . . . . . 1 . . Destroy 6 | . . . 4 . . 2 . . . . . . Blast 7 | . . . . . 6 . . . . 1 . . Melee Attacks 1 | . . . . . . . 1 . . . . . Impact . | . . . . . . . . . . . . . Slashing 1 | . . . . . . . 1 . . . . . Piercing . | . . . . . . . . . . . . . Sneak Attacks . | . . . . . . . . . . . . . Combat Hostiles . | . . . . . . . . . . . . . Follow-up Attacks . | . . . . . . . . . . . . . Damage Inflicted 4617 | 77 . 288 1679 . 966 622 372 30 . 560 . 23 Guns 2850 | 77 . 288 1679 . 23 591 27 . . 165 . . Cannons 1715 | . . . . . 936 31 325 30 . 393 . . Explosions . | . . . . . . . . . . . . . Melee . | . . . . . . . . . . . . . Ramming 52 | . . . . . 7 . 20 . . 2 . 23 Kinetic 4064 | 40 . 177 1679 . 959 622 322 . . 265 . . Thermal 501 | 37 . 111 . . . . 30 30 . 293 . . Explosive . | . . . . . . . . . . . . . Electromagnetic . | . . . . . . . . . . . . . Impact . | . . . . . . . . . . . . . Slashing . | . . . . . . . . . . . . . Piercing . | . . . . . . . . . . . . . Highest Corruption 13 | . . . 2 . 3 . 9 9 . . 1 13 Average Corruption 6 | . . . 2 . 1 . 8 9 . . 1 2 Corruption Purged . | . . . . . . . . . . . . . Corruption Blocked . | . . . . . . . . . . . . . Effects 41 | . . . 1 . 2 . 19 17 . . . 2 Message Errors 7 | . . . . . . . 2 4 . . . 1 Matter Fused 11 | . . . 1 . . . 7 2 . . . 1 Heat Flow Errors 5 | . . . . . . . 3 2 . . . . Energy Discharges 3 | . . . . . . . . 3 . . . . Parts Rejected 3 | . . . . . . . 1 2 . . . . Data Loss (minor) 5 | . . . . . 2 . 2 1 . . . . Data Loss (major) 2 | . . . . . . . 2 . . . . . Misfires 1 | . . . . . . . . 1 . . . . Alerts 4 | . . . . . . . 2 2 . . . . Overload Shots . | . . . . . . . . . . . . . Overflow Damage 82 | . . . . . 22 . 16 21 . 23 . . Projectiles 82 | . . . . . 22 . 16 21 . 23 . . Explosions . | . . . . . . . . . . . . . Melee . | . . . . . . . . . . . . . Knockbacks 17 | . . . . . 10 1 3 . . 3 . . Impact . | . . . . . . . . . . . . . Kinetic 16 | . . . . . 9 1 3 . . 3 . . Secondary 1 | . . . . . 1 . . . . . . . Self-Inflicted Damage 11 | . . . . . . . . . . 1 . 10 Shots . | . . . . . . . . . . . . . Rammed 10 | . . . . . . . 3 . . 1 . 6 Targets Rammed 11 | . . . . . 1 . 3 . . 1 . 6 Kicked 1 | . . . . . 1 . . . . . . . Crushed . | . . . . . . . . . . . . . Highest Temperature 632 | 60 . . 542 . 328 632 334 202 . 126 . . Average Temperature 140 | 28 . . 157 . 130 222 66 91 . 60 . . Received Heat Transfer 2182 | 30 . 72 870 . 207 45 656 104 . . 9 189 Effects 39 | . . . 6 . 3 30 . . . . . . Shutdowns 7 | . . . 2 . . 5 . . . . . . Energy Bleed 3 | . . . 2 . 1 . . . . . . . Interference 5 | . . . . . 2 3 . . . . . . Matter Decay 2 | . . . . . . 2 . . . . . . Short Circuit 3 | . . . . . . 3 . . . . . . Damage (minor) 4 | . . . 1 . . 3 . . . . . . Damage (major) 12 | . . . . . . 12 . . . . . . Damage (core) 3 | . . . 1 . . 2 . . . . . . Siege Activations . | . . . . . . . . . . . . . Martial Activations . | . . . . . . . . . . . . . Shielding Activations . | . . . . . . . . . . . . . Robots Disrupted . | . . . . . . . . . . . . . Combat Hostiles . | . . . . . . . . . . . . . Robots Corrupted . | . . . . . . . . . . . . . Combat Hostiles . | . . . . . . . . . . . . . Parts Fried . | . . . . . . . . . . . . . Impact Corruptions . | . . . . . . . . . . . . . Robots Melted . | . . . . . . . . . . . . . Combat Hostiles . | . . . . . . . . . . . . . Parts Melted 16 | 2 . 3 11 . . . . . . . . . Heat Transferred 1338 | 185 . 481 . . . . 37 37 . 598 . . Parts Sabotaged . | . . . . . . . . . . . . . Parts Stolen . | . . . . . . . . . . . . . Parts Stripped . | . . . . . . . . . . . . . Power Chain Reactions . | . . . . . . . . . . . . . Alert | -11 -10 -10 -7 -5 -5 -4 -4 -4 -3 -3 -2 -1 ------- Run | Yrd Mat Sub Scr Fac DSF Fac Upp Upp Res DSF Res Acc Maximum Alert Level 1 | . . . . . . . . . . . . 1 Low Security (%) 99 | 100 100 . . 100 100 100 . . 100 100 100 99 Level 1 . | . . . . . . . . . . . . . Level 2 . | . . . . . . . . . . . . . Level 3 . | . . . . . . . . . . . . . Level 4 . | . . . . . . . . . . . . . Level 5 . | . . . . . . . . . . . . . High Security . | . . . . . . . . . . . . . Max Security . | . . . . . . . . . . . . . Peak Influence 200 | 20 . . . . 190 131 . . . 32 2 200 Initial 81 | . . . . . . 81 . . . 1 2 . Average 44 | 1 . . . . 104 46 . . . 13 . 104 Influence Increases 1387 | 20 . . . . 210 242 430 15 4 76 . 390 Destroy 0b10 Robot/C 440 | 20 . . . . 120 140 120 . . 40 . . Destroy 0b10 Robot/NC 5 | . . . . . 5 . . . . . . . Destroy Leader 60 | . . . . . 20 20 10 . . 10 . . Successful Hack 9 | . . . . . . 5 . . 4 . . . Disable Machine 45 | . . . . . 18 18 . . . 9 . . Destroy Structure 18 | . . . . . 2 14 . . . 2 . . Lose Combat Pursuer 810 | . . . . . 45 45 300 15 . 15 . 390 Influence Decreases 1207 | 20 . . . . 30 361 351 155 . 75 5 210 Entered New Map 172 | . . . . . . 99 28 39 . 3 3 . Time Decay 737 | 20 . . . . . 181 303 101 . . 2 130 Lost Part 227 | . . . . . 30 10 20 15 . 72 . 80 Purge Threat 71 | . . . . . . 71 . . . . . . Squads Dispatched 6 | . . . . . 2 . . . . 1 . 3 Investigation 1 | . . . . . . . . . . . . 1 Extermination 1 | . . . . . . . . . . . . 1 Reinforcement 4 | . . . . . 2 . . . . 1 . 1 Assault . | . . . . . . . . . . . . . Garrison . | . . . . . . . . . . . . . Intercept . | . . . . . . . . . . . . . Searches Triggered . | . . . . . . . . . . . . . Construction Impeded . | . . . . . . . . . . . . . Haulers Reinforced . | . . . . . . . . . . . . . Active Scanning Responses . | . . . . . . . . . . . . . Cargo Convoy Interrupts . | . . . . . . . . . . . . . Stealth | -11 -10 -10 -7 -5 -5 -4 -4 -4 -3 -3 -2 -1 --------- Run | Yrd Mat Sub Scr Fac DSF Fac Upp Upp Res DSF Res Acc Distress Signals 4 | . . . . . . 1 . . . . . 3 Communications Jammed . | . . . . . . . . . . . . . Distress Signals . | . . . . . . . . . . . . . Times Spotted 166 | 1 . 4 41 . 16 13 35 5 . 7 3 41 Peak Tracking Total 18 | 1 . 2 5 . 7 6 10 5 . 5 3 18 Tactical Retreats 27 | . . . . . 3 2 11 1 . 1 . 9 Traps | -11 -10 -10 -7 -5 -5 -4 -4 -4 -3 -3 -2 -1 ------- Run | Yrd Mat Sub Scr Fac DSF Fac Upp Upp Res DSF Res Acc Traps Triggered . | . . . . . . . . . . . . . Indirectly . | . . . . . . . . . . . . . Trap Hack Attempts . | . . . . . . . . . . . . . Triggered . | . . . . . . . . . . . . . Disarmed . | . . . . . . . . . . . . . Reprogrammed . | . . . . . . . . . . . . . Reused . | . . . . . . . . . . . . . Traps Extracted . | . . . . . . . . . . . . . Installed . | . . . . . . . . . . . . . Triggered . | . . . . . . . . . . . . . Machines | -11 -10 -10 -7 -5 -5 -4 -4 -4 -3 -3 -2 -1 ---------- Run | Yrd Mat Sub Scr Fac DSF Fac Upp Upp Res DSF Res Acc Machines Disabled 7 | . . . 2 . 2 2 . . . 1 . . Max in Single Turn 1 | . . . 1 . 1 1 . . . 1 . . Machines Repaired . | . . . . . . . . . . . . . Machines Dismantled . | . . . . . . . . . . . . . Machines Sabotaged . | . . . . . . . . . . . . . Overloaded Fab Kills . | . . . . . . . . . . . . . Hacking | -11 -10 -10 -7 -5 -5 -4 -4 -4 -3 -3 -2 -1 --------- Run | Yrd Mat Sub Scr Fac DSF Fac Upp Upp Res DSF Res Acc Machines Accessed 12 | . . . 6 1 . 3 . . 1 . . 1 Terminals 5 | . . . . 1 . 3 . . 1 . . . Fabricators . | . . . . . . . . . . . . . Repair Stations . | . . . . . . . . . . . . . Recycling Units . | . . . . . . . . . . . . . Scanalyzers . | . . . . . . . . . . . . . Garrison Access 1 | . . . . . . . . . . . . 1 Total Hacks 57 | . . . 44 1 . 8 . . 2 . . 2 Successful 53 | . . . 44 1 . 7 . . 1 . . . Failed 4 | . . . . . . 1 . . 1 . . 2 Catastrophic . | . . . . . . . . . . . . . Database Lockouts . | . . . . . . . . . . . . . Manual 4 | . . . 3 . . 1 . . . . . . Terminals 11 | . . . . 1 . 8 . . 2 . . . Fabricators . | . . . . . . . . . . . . . Repair Stations . | . . . . . . . . . . . . . Recycling Units . | . . . . . . . . . . . . . Scanalyzers . | . . . . . . . . . . . . . Garrison Access 2 | . . . . . . . . . . . . 2 Terminal Hacks 53 | . . . 44 1 . 7 . . 1 . . . Record 37 | . . . 37 . . . . . . . . . Part Schematic 1 | . . . . . . 1 . . . . . . Robot Analysis 7 | . . . 7 . . . . . . . . . Prototype ID Bank 1 | . . . . . . 1 . . . . . . Open DSF 2 | . . . . 1 . . . . 1 . . . Alert Level 1 | . . . . . . 1 . . . . . . Unreport Threat 1 | . . . . . . 1 . . . . . . Locate Traps 1 | . . . . . . 1 . . . . . . Investigation Status 1 | . . . . . . 1 . . . . . . Recall Investigation 1 | . . . . . . 1 . . . . . . Fabricator Hacks . | . . . . . . . . . . . . . Repair Station Hacks . | . . . . . . . . . . . . . Recycling Unit Hacks . | . . . . . . . . . . . . . Scanalyzer . | . . . . . . . . . . . . . Garrison Access Hacks . | . . . . . . . . . . . . . Unauthorized Hacks . | . . . . . . . . . . . . . Terminals . | . . . . . . . . . . . . . Fabricators . | . . . . . . . . . . . . . Repair Stations . | . . . . . . . . . . . . . Recycling Units . | . . . . . . . . . . . . . Scanalyzers . | . . . . . . . . . . . . . Garrison Access . | . . . . . . . . . . . . . Data Cores Recovered . | . . . . . . . . . . . . . Used . | . . . . . . . . . . . . . Hacking Detections 5 | . . . . . . 3 . . 1 . . 1 Full Trace Events 1 | . . . . . . . . . . . . 1 Feedback Events 1 | . . . . . . . . . . . . 1 Corruption 1 | . . . . . . . . . . . . 1 Feedback Blocked . | . . . . . . . . . . . . . Robot Schematics Acquired . | . . . . . . . . . . . . . Robots Built . | . . . . . . . . . . . . . Authchips . | . . . . . . . . . . . . . Time . | . . . . . . . . . . . . . Total Robot Build Rating . | . . . . . . . . . . . . . Part Schematics Acquired 1 | . . . . . . 1 . . . . . . Parts Built . | . . . . . . . . . . . . . Authchips . | . . . . . . . . . . . . . Time . | . . . . . . . . . . . . . Total Part Build Rating . | . . . . . . . . . . . . . Part Studies Acquired . | . . . . . . . . . . . . . Parts Repaired . | . . . . . . . . . . . . . Time . | . . . . . . . . . . . . . Parts Recycled . | . . . . . . . . . . . . . Recycled Matter . | . . . . . . . . . . . . . Retrieved Matter . | . . . . . . . . . . . . . Retrieved Components . | . . . . . . . . . . . . . Parts Scanalyzed . | . . . . . . . . . . . . . Part Schematics Acquired . | . . . . . . . . . . . . . Parts Damaged . | . . . . . . . . . . . . . Bothacking | -11 -10 -10 -7 -5 -5 -4 -4 -4 -3 -3 -2 -1 ------------ Run | Yrd Mat Sub Scr Fac DSF Fac Upp Upp Res DSF Res Acc Used RIF Installer . | . . . . . . . . . . . . . Robots Hacked . | . . . . . . . . . . . . . Non-combat . | . . . . . . . . . . . . . Combat . | . . . . . . . . . . . . . Robot Hacks Applied . | . . . . . . . . . . . . . Relay Couplers Released . | . . . . . . . . . . . . . Fabnet Peak Effective % . | . . . . . . . . . . . . . Robots Rewired . | . . . . . . . . . . . . . Allies Hacked . | . . . . . . . . . . . . . Hacks Repelled . | . . . . . . . . . . . . . Allies | -11 -10 -10 -7 -5 -5 -4 -4 -4 -3 -3 -2 -1 -------- Run | Yrd Mat Sub Scr Fac DSF Fac Upp Upp Res DSF Res Acc Total Allies 1 | . . . 1 . . . . . . . . . Largest Group 1 | . . . 1 . . . . . . . . . Highest-Rated Group 88 | . . . 88 . . . . . . . . . Highest-Rated Ally 88 | . . . 88 . . . . . . . . . Total Orders . | . . . . . . . . . . . . . Ally Attacks 57 | . . . 57 . . . . . . . . . Total Damage 2042 | . . . 2042 . . . . . . . . . Kills 17 | . . . 17 . . . . . . . . . Allies Corrupted . | . . . . . . . . . . . . . Allies Melted 13 | . . . 13 . . . . . . . . . Intel | -11 -10 -10 -7 -5 -5 -4 -4 -4 -3 -3 -2 -1 ------- Run | Yrd Mat Sub Scr Fac DSF Fac Upp Upp Res DSF Res Acc Active Infowar (turns) 736 | . . . . . . . 99 379 139 119 . . Terrain 734 | . . . . . . . 99 379 139 117 . . Seismic 215 | . . . . . . . . . 96 119 . . Robot Analysis Total 7 | . . . 7 . . . . . . . . . Derelict Logs Recovered 1 | . . 1 . . . . . . . . . . Drone Launches . | . . . . . . . . . . . . . Drone Recoveries . | . . . . . . . . . . . . . Exploration | -11 -10 -10 -7 -5 -5 -4 -4 -4 -3 -3 -2 -1 ------------- Run | Yrd Mat Sub Scr Fac DSF Fac Upp Upp Res DSF Res Acc Turns Passed 4977 | 407 56 609 1352 8 244 520 743 379 139 128 76 316 Spaces Moved 4179 | 161 38 502 1143 6 154 236 816 312 105 86 103 517 Core 764 | 33 . . . . . . 587 . . 15 9 120 Treads 148 | . . . . . . 34 114 . . . . . Legs 1628 | 110 38 163 351 6 154 202 115 312 105 71 . 1 Wheels 1149 | 18 . 339 792 . . . . . . . . . Hover 17 | . . . . . . . . . . . . 17 Flight 473 | . . . . . . . . . . . 94 379 Fastest Speed 45 | 50 120 80 90 90 90 90 50 120 120 50 45 45 Average Speed 95 | 101 120 106 96 90 94 181 80 120 120 107 45 53 Slowest Speed 270 | 120 120 120 170 90 270 270 180 120 120 120 50 120 Overloaded Moves . | . . . . . . . . . . . . . Propulsion Burnouts . | . . . . . . . . . . . . . Robots Hopped 4 | . . . . . . . . . . . 2 2 Potential Cave-ins . | . . . . . . . . . . . . . Cave-ins Triggered . | . . . . . . . . . . . . . Exploration Rate (%) 32 | 13 5 28 67 . 83 4 89 28 3 47 3 15 Regions Visited 12 Branch Regions 4 Pre-discovered Areas 1 | . . 1 . . . . . . . . . . Known Exits Taken 3 | . . . 1 1 . . . . 1 . . . Unknown Exits Taken 7 | 1 1 1 . . . 1 1 1 . . 1 . Scrap Searched 8 | . . . 3 . . . 4 1 . . . . Spaces Dug . | . . . . . . . . . . . . . Terrain Destroyed 44 | . . . 27 . 1 8 7 . . 1 . . Melee . | . . . . . . . . . . . . . Projectile 44 | . . . 27 . 1 8 7 . . 1 . . AOE . | . . . . . . . . . . . . . Terrain Rammed . | . . . . . . . . . . . . . Walls Destroyed . | . . . . . . . . . . . . . Machines Disabled . | . . . . . . . . . . . . . Actions | -11 -10 -10 -7 -5 -5 -4 -4 -4 -3 -3 -2 -1 --------- Run | Yrd Mat Sub Scr Fac DSF Fac Upp Upp Res DSF Res Acc Total 4948 | 394 48 555 1305 8 226 300 881 316 118 108 132 557 Wait 362 | 213 11 20 27 . 14 24 11 1 6 . 19 16 Move 4161 | 160 37 501 1142 5 153 235 815 311 104 86 99 513 Hop 3 | . . . . . . . . . . . 1 2 Pick Up 104 | 9 . 6 31 . 19 7 12 2 4 5 3 6 Fast Attach 14 | . . 2 4 . 3 1 3 . . . . 1 Attach 82 | 5 . 2 13 3 12 7 18 2 3 2 5 10 Detach 12 | . . . 1 . . 2 2 . . 2 4 1 Swap 19 | 2 . 4 12 . 1 . . . . . . . Drop 67 | . . 9 28 . 8 10 3 . 1 5 1 2 Fire 111 | 5 . 11 45 . 15 14 13 . . 8 . . Melee 1 | . . . . . . . 1 . . . . . Ram 6 | . . . . . . . . . . . . 6 Kick 1 | . . . . . 1 . . . . . . . Crush 3 | . . . . . . . 3 . . . . . Escape Stasis . | . . . . . . . . . . . . . Rewire 1 | . . . 1 . . . . . . . . . Trap . | . . . . . . . . . . . . . Miscellaneous 1 | . . . 1 . . . . . . . . . Route ------- -11/Scrapyard -10/Materials -10/Subcaves (discovered 2 exits: [*Mat] / *Scr) -7/Scraptown (discovered 2 exits: *Fac x2) -5/Factory -5/DSF -4/Factory (discovered 2 exits: *Res / [*Upp]) -4/Upper Caves -4/Upper Caves -3/Research -3/DSF -2/Research -1/Access History --------- Turn | Location | Event 2 | -11/Scrapyard | Met Revision 17 43 | -11/Scrapyard | Discovered new exit (range 8) 408 | -11/Scrapyard | Entered Materials 409 | -10/Materials | Build established: Mutant 409 | -10/Materials | Met a group of wandering Federalists 446 | -10/Materials | Discovered new exit (range 5) 464 | -10/Materials | Entered Subcaves 465 | -10/Subcaves | Continued accompanying wandering Federalists (5) 470 | -10/Subcaves | Learned Materials terminal intel 476 | -10/Subcaves | Discovered new exit (range 12) 491 | -10/Subcaves | Learned location of Zion (-7) 491 | -10/Subcaves | Met a Zionite searching for "candidates" 620 | -10/Subcaves | Shifting Twisted Machinery released Scrap Shield 629 | -10/Subcaves | Shifting Twisted Machinery released Sub. Power Source 1073 | -10/Subcaves | Entered Scraptown 1076 | -7/Scraptown | Build established: Subdweller-Mutant 1247 | -7/Scraptown | Visited TADAMA 1269 | -7/Scraptown | Visited Red Mages 1328 | -7/Scraptown | Visited UFD Registry 1328 | -7/Scraptown | Registered with UFD as "Fissionchip" 1379 | -7/Scraptown | Visited Scrapoid Research Area 1414 | -7/Scraptown | Visited Botcube Research 1431 | -7/Scraptown | Found Lrg. Botcube 1466 | -7/Scraptown | Visited Analyses Database 1494 | -7/Scraptown | Visited Scrap Suit Storage 1549 | -7/Scraptown | Discovered new exit (range 3) 1661 | -7/Scraptown | Met Optimus 1661 | -7/Scraptown | Accepted into 0bPrime 1803 | -7/Scraptown | Civil war broke out across Scraptown 1851 | -7/Scraptown | Found Prototype Storage 1851 | -7/Scraptown | Identified Vmp. Humpback 1868 | -7/Scraptown | Found Prototype Leg 1868 | -7/Scraptown | Identified Potential Leg 1878 | -7/Scraptown | Identified exit to Factory 1881 | -7/Scraptown | Visited Curators Association 1893 | -7/Scraptown | Lost 3 allies 1896 | -7/Scraptown | Lrg. Botcube activated 1922 | -7/Scraptown | Visited DA-N13 Charitable Foundation 1924 | -7/Scraptown | Lrg. Botcube completed mutation into legged form, armed with 2 guns. 1967 | -7/Scraptown | Lost 3 allies 2026 | -7/Scraptown | Lost 3 allies 2059 | -7/Scraptown | Optimus destroyed in the chaos of civil war 2242 | -7/Scraptown | Build established: Scavenger-Mutant 2242 | -7/Scraptown | Lost 8 allies 2301 | -7/Scraptown | Visited Junk Repository 2358 | -7/Scraptown | Lost 7 allies 2389 | -7/Scraptown | Destroyed 8 combat bots 2424 | -7/Scraptown | Core integrity fell below 50% 2425 | -7/Scraptown | Entered Factory 2425 | -5/Factory | Evolved 10 slots: Power x1, Propulsion x4, Utility x4, Weapon x1 2432 | -5/Factory | Identified exit to DSF 2433 | -5/Factory | Entered DSF 2447 | -5/DSF | Lost 4 parts (1p1n2w) 2455 | -5/DSF | Lost 3 allies 2467 | -5/DSF | Additional patrols routed to DSF 2598 | -5/DSF | Discovered new exit (range 15) 2677 | -5/DSF | Entered Factory 2677 | -4/Factory | Evolved 2 slots: Weapon x2 2693 | -4/Factory | Discovered new exit (range 3) 2999 | -4/Factory | Discovered new exit (range 8) 3008 | -4/Factory | Build established: Hacker-Tank 3197 | -4/Factory | Entered Upper Caves 3351 | -4/Upper Caves | Attracted the attention of an 0b10 checkpoint 3410 | -4/Upper Caves | Lost 9 parts (2p3u4w) 3448 | -4/Upper Caves | Core integrity fell below 50% 3477 | -4/Upper Caves | Lost 4 parts (1n3u) 3491 | -4/Upper Caves | Attacked by a faux Warlord 3682 | -4/Upper Caves | Core integrity fell below 20% 3732 | -4/Upper Caves | Build established: Mutant 3870 | -4/Upper Caves | Attracted the attention of an 0b10 outpost 3934 | -4/Upper Caves | Discovered new exit (range 8) 3940 | -4/Upper Caves | Entered another Upper Caves area 3947 | -4/Upper Caves | Encountered a Warlord checkpoint 3950 | -4/Upper Caves | Discovered new exit (range 12) 4126 | -4/Upper Caves | Build established: Derelict-Tank 4319 | -4/Upper Caves | Entered Research 4319 | -3/Research | Evolved 2 slots: Power x1, Utility x1 4458 | -3/Research | Identified exit to DSF 4458 | -3/Research | Entered DSF 4510 | -3/DSF | Additional patrols routed to DSF 4551 | -3/DSF | Discovered new exit (range 15) 4586 | -3/DSF | Entered Research 4586 | -2/Research | Evolved 2 slots: Propulsion x2 4610 | -2/Research | Lost 9 parts (1p2n4u2w) 4639 | -2/Research | Discovered new exit (range 10) 4662 | -2/Research | Entered Access 4662 | -1/Access | Evolved 2 slots: Utility x2 4884 | -1/Access | Build established: Mutant 4918 | -1/Access | Core integrity fell below 50% 4947 | -1/Access | Core integrity fell below 20% 4956 | -1/Access | Lost 3 parts (3n) 4975 | -1/Access | System corruption reached 10% 4978 | -1/Access | Destroyed by P-80 Master with Gamma Rifle Last Messages --------------- 04957_ Acquired Centrium Leg. 04965_ Drone sends a signal. 04966_ P-80 Master resets P-80 Master, system corruption cleaned. 04968_ Slammed into P-80 Master. 04969_ P-80 Master resets P-80 Master, system corruption cleaned. 04970_ Penetrated by Slug. 04973_ Slug penetrates Longscan Aggregator. 04973_ Penetrated by Slug. 04973_ Slug penetrates Wall. [Achievement: System Compromised] 04976_ Penetrated by Slug. 04976_ Biometal Leg destroyed. 04977_ Penetrated by Slug. 04977_ Lyr. Light Armor Plating destroyed. 04977_ Penetrated by Slug. [Achievement: First Step to Greatness] [Achievement: 5k Club] [Achievement: 10k Club] Map ----- +----------------------------------------------------+ | ???????????????????????????????????????????????? | | ???????????????????????????????????????????????? | | ???????????????????????????????????????????????? | | ???????????????????????????????????????????????? | | ???????????????????????????????????????????????? | | ???????????????????????????????????????????????? | | ???????????????????????????????????????????????? | | ???????????????????????????????????????????????? | | ???????????????????????????????????????????????? | | ???????????????????????????????????????????????? | | ???????????????????????????????????????????????? | | ???????????????????????????????????????????????? | | ???????????????????????????????????????????????? | | ???????????????????????????????????????????????? | | ???????????????????????????????????????????????? | | ???????????????????????????????????????????????? | | ???????????????????????????????????????????????? | | ???????????????????????????????????????????????? | | ???????????????????????????????????????????????? | | ???????????????????????????????????????????????? | | ?????????????????????????? ??????????????????? | | ?????????????????????????+ #?????????????????? | | ?##############??????????# #?????????????????? | | ?# #??????????# #?????????????????? | | ?# ############ ###???????????????? | | ?# """"""" # @ #???????????????? | | ?# """Y""" # #####???????????? | | ?# # ??????????? | | ?# pp ?????????? | | ?# #ppp ^ "" ?????????? | | ?# # "" ######??????????? | | ?# ## h """""" #???????????????? | | ?# ## p h"""""" #########????????? | | ?# ## p "" # #????????? | | ?# ## "" # ! #????????? | | ?############### # #????????? | | ???????????????# + #????????? | | ???????????????# # #????????? | | ???????????????# " " # # ?????? | | ???????????????# "T" # # #????? | | ???????????????# """ # # #????? | | ????????????########+###### # # #????? | | ????????????# ## # # #????? | | ????????????# ## + # #????? | | ????????????# "" ## ######### #????? | | ????????????# """ ## #???????# #????? | | ????????????# "" ## #???????# #????? | | ????????????# ""F" ##+#/######### #????? | | ?????????????? """" # # #????? | | ?????????????? """ # / # #????? | +----------------------------------------------------+ Best States ------------- Heat Dissipation 56 Energy Generation 31 Energy Capacity 340 Matter Stores 300 Matter Capacity 300 Sight Range 16 Terrain Scan Range 16 Terrain Scan Density 135 Armor Coverage 1050 Resistance: KI 20 Resistance: TH 20 Resistance: EX 20 Resistance: EM 20 Resistance: I 20 Resistance: S 20 Resistance: P 20 Evasion (%) 61 Melee Accuracy 6 Recoil Reduction 2 Offensive Hacking 30 Item Schematics ----------------- Mic. Antimatter Reactor | -4/Factory | Hacked Robot Schematics ------------------ None Fabricated ------------ Nothing Repaired ---------- Nothing Studied --------- None Alien Tech Used ----------------- None Achievements -------------- 10k Club 5k Club Armchair Analyst Bumper Bots Civilization 2243 Close Call Crack Shot Dangerous Findings Denied? Everything Is Under Control First Step to Greatness For Emergencies Only Frankenstein Heavy Suspicion I Have A Map? Librarian Link The Feds Loot Pinata Made in Tau Ceti IV Omniscient Cartographer One Hack Too Far Organ Harvest Please Form A Line Risk Taker Serviceable Loadout Slippery One Sprinter Streaker Strength In Numbers Survival Of The Most Covered System Compromised There's More Where That Came From Tourist Uncivil War Uninvited Guest Universal Adapter Well Done Window Shopping Challenges ------------ None Game ------ Seed ScrapHelicalRigger Manual? 0 Play Time 02:47:46 Cumulative 2.7 hours Start 2025.12.22 @ 07:08:35 End 2025.12.22 @ 10:53:47 Sessions 2 Manual Loads 0 Difficulty Adventurer Special Mode None Game No. 1 Rogue 0 Adventurer 1 Explorer 0 Win Type - Total 0 Types 0/0/0/0/0/0/0/0/0/0 Lore% 5 Gallery% 5 Achievement% 8 Wizard Run 0 Options --------- Layout 2 ASCII 0 Keyboard 0 Movement Mouse Keybinds 0 Fullscreen 2 Font 24/Smallcaps Map View 25x22 Zoom Use 81% Tactical HUD 1 Map Filters NONE Filters NONE Steam 0 RUN: a9b21ba6-a8c1-43fd-adf9-5072262faaff